bitfinex/quotes_BTCUSD_20240701
["timestamp","ask_amount","ask_price","bid_price","bid_amount"]
[1719856930999,0.19147977,63724.0,63723.0,0.013]
[1719856931000,0.49607977,63724.0,63723.0,0.013]
[1719856931217,0.00530079,63723.0,63722.0,0.2]
[1719856931460,0.25553051,63723.0,63722.0,0.2]
[1719856931803,0.25553051,63723.0,63717.0,0.0001]
[1719856931804,0.03530079,63718.0,63717.0,0.0001]
[1719856932053,0.22063977,63718.0,63717.0,0.0001]
[1719856932492,0.19063977,63718.0,63717.0,0.0001]
[1719856934531,0.19063977,63718.0,63717.0,0.0141]
[1719856934906,0.19063977,63718.0,63717.0,0.0281]
[1719856935331,0.25553081,63718.0,63717.0,0.0281]
[1719856935930,0.25553081,63718.0,63717.0,0.0141]
[1719856935931,0.25553087,63718.0,63717.0,0.0141]
[1719856936231,0.25553087,63718.0,63717.0,0.0281]
[1719856938868,0.81983087,63718.0,63717.0,0.0281]
[1719856939223,0.81983108,63718.0,63717.0,0.0281]
[1719856939656,0.81983108,63718.0,63717.0,0.0141]
[1719856940073,0.75983108,63718.0,63717.0,0.0241]
[1719856940284,0.81983108,63718.0,63717.0,0.0101]
[1719856940639,0.81983108,63718.0,63717.0,0.0121]
[1719856940832,0.81983108,63718.0,63717.0,0.0001]
[1719856941031,0.81983108,63718.0,63717.0,0.0031]
[1719856941268,0.81983108,63718.0,63717.0,0.0071]
[1719856941455,0.81983108,63718.0,63717.0,0.0041]
[1719856942065,0.81983108,63718.0,63717.0,0.0001]
[1719856942713,0.81493977,63718.0,63717.0,0.0001]
[1719856942887,0.81983112,63718.0,63717.0,0.0031]
[1719856943288,0.81983112,63718.0,63717.0,0.0041]
[1719856943832,0.81983112,63718.0,63717.0,0.0071]
[1719856944980,0.51493112,63718.0,63717.0,0.0071]
[1719856945180,0.19553112,63718.0,63717.0,0.0071]
[1719856945384,0.19063977,63718.0,63717.0,0.0071]
[1719856946048,0.19063977,63718.0,63717.0,0.0041]
[1719856946247,0.19063977,63718.0,63717.0,0.0081]
[1719856946402,0.19553087,63718.0,63717.0,0.0041]
[1719856946614,0.19553087,63718.0,63717.0,0.0001]
[1719856946836,0.16723008,63718.0,63717.0,0.0071]
[1719856947093,0.00084,63724.0,63718.0,0.5428]
[1719856947425,0.00084,63724.0,63718.0,0.701631]
[1719856947426,0.00530079,63723.0,63718.0,0.701631]
[1719856947622,0.00530079,63720.0,63718.0,0.701631]
[1719856947952,0.00530079,63723.0,63718.0,0.701631]
[1719856948288,0.00084,63722.0,63718.0,0.701631]
[1719856949084,0.00530079,63721.0,63718.0,0.701631]
[1719856949285,0.00530079,63719.0,63718.0,0.701631]
[1719856949485,0.00530079,63721.0,63718.0,0.701631]
[1719856949929,0.00530079,63721.0,63718.0,0.706631]
[1719856950254,0.00530079,63721.0,63718.0,0.710631]
[1719856950447,0.00530079,63721.0,63718.0,0.705631]
[1719856950650,0.00530079,63721.0,63718.0,0.712631]
[1719856950825,0.00530079,63721.0,63718.0,0.708631]
[1719856951025,0.02384,63722.0,63718.0,0.716631]
[1719856951232,0.00614079,63722.0,63718.0,0.716631]
[1719856951644,0.00084,63722.0,63719.0,0.00313846]
[1719856951848,0.00084,63722.0,63721.0,0.7706]
[1719856952006,0.00084,63722.0,63721.0,1.51423321]
[1719856952207,0.00084,63722.0,63721.0,2.12810121]
[1719856952407,0.00084,63722.0,63721.0,1.82810121]
[1719856952830,0.00084,63722.0,63721.0,2.12810121]
[1719856953417,0.00084,63722.0,63721.0,2.12910121]
[1719856953619,0.00084,63722.0,63721.0,2.90530819]
[1719856953917,0.00084,63724.0,63723.0,0.85469921]
[1719856954117,0.00084,63724.0,63723.0,2.18858319]
[1719856954317,0.00084,63724.0,63723.0,2.56792623]
[1719856954522,0.00084,63724.0,63723.0,2.26792623]
[1719856955275,0.00084,63724.0,63723.0,2.26892623]
[1719856955453,0.00084,63724.0,63723.0,2.26792623]
[1719856955654,0.00084,63724.0,63723.0,2.56792623]
[1719856955858,0.00084,63724.0,63723.0,2.88278423]
[1719856956263,0.00084,63724.0,63723.0,2.88378423]
[1719856956661,0.00084,63724.0,63723.0,2.88278423]
[1719856956987,0.00094,63725.0,63724.0,1.63933121]
[1719856957205,0.00176584,63742.0,63741.0,1.80955221]
[1719856957362,0.00176584,63742.0,63741.0,2.28142121]
[1719856957574,0.00176584,63742.0,63741.0,2.69519021]
[1719856957767,0.00176584,63742.0,63741.0,1.043031]
[1719856958167,0.00176584,63742.0,63741.0,1.543031]
[1719856958428,0.00176584,63742.0,63741.0,2.08238321]
[1719856958654,0.00176584,63742.0,63741.0,2.39615221]
[1719856958877,0.00176584,63742.0,63741.0,2.38215221]
[1719856959678,0.00176584,63742.0,63741.0,3.65826019]
[1719856959867,0.00176584,63742.0,63741.0,3.35826019]
[1719856960003,0.00176584,63742.0,63741.0,3.65826019]
[1719856960229,0.00176584,63742.0,63741.0,3.67226019]
[1719856960445,0.00176584,63742.0,63741.0,3.68626019]
[1719856960668,0.00841,63752.0,63749.0,2.64762421]
[1719856960864,0.01743821,63750.0,63749.0,3.79732419]
[1719856961079,0.00841,63752.0,63750.0,0.35469921]
[1719856961281,0.00841,63765.0,63750.0,0.35469921]
[1719856961282,0.00841,63765.0,63764.0,1.32589921]
[1719856961490,0.00841,63765.0,63764.0,2.21331421]
[1719856961816,0.00841,63765.0,63764.0,1.89965821]
[1719856962460,0.00841,63765.0,63764.0,2.98930919]
[1719856962664,0.00841,63765.0,63764.0,2.67565319]
[1719856963037,0.00841,63765.0,63764.0,2.68565319]
[1719856963258,0.1,63770.0,63767.0,0.93469921]
[1719856963471,0.1,63770.0,63767.0,2.23229919]
[1719856963675,0.1,63770.0,63767.0,2.54594019]
[1719856963842,0.1,63770.0,63767.0,2.24594019]
[1719856964041,0.1,63770.0,63767.0,2.48338323]
[1719856964242,0.1,63770.0,63767.0,2.78338323]
[1719856964467,0.1,63770.0,63767.0,2.62518323]
[1719856964797,0.1,63770.0,63767.0,1.69790123]
[1719856965166,0.1,63770.0,63767.0,1.08074225]
[1719856965370,0.1,63770.0,63767.0,1.23756225]
[1719856965528,0.00341,63768.0,63767.0,1.85020325]
[1719856965755,0.00341,63768.0,63767.0,1.23556225]
[1719856965969,0.00341,63768.0,63767.0,1.23656225]
[1719856966179,0.00341,63768.0,63767.0,1.08074225]
[1719856966577,0.00341,63768.0,63767.0,1.07974225]
[1719856967021,0.00341,63768.0,63767.0,0.87974225]
[1719856967296,0.00341,63768.0,63767.0,0.64414304]
[1719856967495,0.00341,63768.0,63764.0,0.158831]
[1719856967671,0.00341,63768.0,63767.0,0.201]
[1719856968072,0.00341,63768.0,63767.0,0.202]
[1719856968073,0.00871079,63768.0,63767.0,0.202]
[1719856968274,0.17104977,63768.0,63767.0,0.202]
[1719856968503,0.00341,63768.0,63767.0,0.2]
[1719856968850,0.00341,63768.0,63767.0,0.214]
[1719856969566,0.00871079,63768.0,63767.0,0.2]
[1719856969944,0.00341,63768.0,63767.0,0.2]
[1719856970171,0.00871079,63768.0,63767.0,0.2]
[1719856970366,0.00341,63768.0,63766.0,0.2]
[1719856970608,0.00341,63768.0,63767.0,0.19134304]
[1719856970809,0.00341,63768.0,63767.0,0.42894304]
[1719856971226,0.00341,63768.0,63767.0,0.44294304]
[1719856972036,0.00441,63768.0,63767.0,0.44894304]
[1719856972302,0.00441,63768.0,63767.0,2.33038323]
[1719856972506,0.00441,63768.0,63767.0,2.78848323]
[1719856972614,0.00441,63768.0,63767.0,2.48848323]
[1719856972817,0.00441,63768.0,63767.0,2.78848323]
[1719856973066,0.00441,63768.0,63767.0,2.48848323]
[1719856973272,0.00441,63768.0,63767.0,2.78248323]
[1719856973273,0.00341,63768.0,63767.0,2.78248323]
[1719856973627,0.01741,63768.0,63767.0,2.76948323]
[1719856973830,0.01741,63768.0,63767.0,0.90659921]
[1719856974061,0.01741,63768.0,63767.0,0.96124304]
[1719856974375,0.01741,63768.0,63767.0,0.98594225]
[1719856974534,0.01741,63768.0,63767.0,0.96124304]
[1719856974735,0.01741,63768.0,63767.0,0.76124304]
[1719856975195,0.1,63770.0,63768.0,0.08259]
[1719856975397,0.1,63770.0,63768.0,0.18259]
[1719856975600,0.1,63770.0,63768.0,0.21249]
[1719856975909,0.1,63770.0,63768.0,0.18249]
[1719856976432,0.1,63770.0,63768.0,0.19649]
[1719856977653,0.101,63770.0,63768.0,0.21049]
[1719856977867,0.101,63770.0,63769.0,0.05459921]
[1719856978075,0.101,63770.0,63769.0,0.1]
[1719856978565,0.101,63770.0,63769.0,0.1299]
[1719856979018,0.101,63770.0,63769.0,0.15459921]
[1719856979202,0.101,63770.0,63769.0,0.16859921]
[1719856979404,0.101,63770.0,63769.0,0.16849921]
[1719856979597,0.1,63770.0,63769.0,0.16849921]
[1719856980027,0.101,63770.0,63769.0,0.33931521]
[1719856980238,0.101,63770.0,63769.0,0.95294721]
[1719856980435,0.101,63770.0,63769.0,1.80891819]
[1719856980661,0.101,63770.0,63769.0,2.00891819]
[1719856980879,0.101,63770.0,63769.0,0.2079]
[1719856981077,0.101,63770.0,63769.0,0.3279]
[1719856981225,0.101,63770.0,63769.0,0.228]
[1719856981226,0.10630079,63770.0,63769.0,0.228]
[1719856981429,0.26863977,63770.0,63769.0,0.228]
[1719856981631,0.26947977,63770.0,63769.0,0.028]
[1719856981997,0.35247977,63770.0,63769.0,0.014]
[1719856982201,0.91717977,63770.0,63769.0,0.014]
[1719856982402,0.85717977,63770.0,63769.0,0.014]
[1719856982641,0.85717977,63770.0,63769.0,0.09334304]
[1719856982857,0.85617977,63770.0,63769.0,0.09334304]
[1719856983287,0.85717977,63770.0,63769.0,0.10734304]
[1719856983498,0.85717977,63770.0,63769.0,0.29334304]
[1719856983499,0.10184,63770.0,63769.0,0.29334304]
[1719856983616,0.29247977,63770.0,63769.0,0.30334304]
[1719856983816,0.29347977,63770.0,63769.0,0.30334304]
[1719856984497,0.10284,63770.0,63769.0,0.28934304]
[1719856984680,0.10284,63770.0,63769.0,0.60389408]
[1719856984919,0.10284,63770.0,63769.0,0.39734304]
[1719856985104,0.10284,63770.0,63769.0,0.39724304]
[1719856985258,0.10814079,63770.0,63769.0,0.39724304]
[1719856985457,0.10814079,63770.0,63769.0,0.38924304]
[1719856985662,0.10284,63770.0,63769.0,0.40324304]
[1719856985862,0.10814079,63770.0,63769.0,0.40324304]
[1719856986072,0.10814079,63770.0,63769.0,0.39324304]
[1719856986073,0.10084,63770.0,63769.0,0.39324304]
[1719856986279,0.10084,63770.0,63769.0,0.37924304]
[1719856986280,0.10614079,63770.0,63769.0,0.37924304]
[1719856986483,0.10614079,63770.0,63769.0,0.39324304]
[1719856986666,0.10614079,63770.0,63769.0,0.37924304]
[1719856987114,0.10614079,63770.0,63769.0,0.39024304]
[1719856987698,0.10614079,63770.0,63769.0,0.40224304]
[1719856987898,0.26847977,63770.0,63769.0,0.30224304]
[1719856988099,0.29147977,63770.0,63769.0,0.29024304]
[1719856988528,0.29147977,63770.0,63769.0,0.30024304]
[1719856989368,0.29147977,63770.0,63769.0,0.30014304]
[1719856990135,0.29147977,63770.0,63769.0,0.021]
[1719856990354,0.29147977,63770.0,63769.0,0.221]
[1719856991141,0.26898977,63770.0,63769.0,0.221]
[1719856991345,0.26898977,63770.0,63769.0,0.021]
[1719856991975,0.84558977,63770.0,63769.0,0.021]
[1719856992173,0.85047733,63770.0,63769.0,0.021]
[1719856992445,1.15047733,63770.0,63769.0,0.021]
[1719856992658,1.52265554,63770.0,63769.0,0.021]
[1719856992861,1.51776798,63770.0,63769.0,0.021]
[1719856993068,1.52265598,63770.0,63769.0,0.021]
[1719856993207,0.86530079,63768.0,63767.0,0.001124]
[1719856993425,0.06530079,63753.0,63752.0,0.2]
[1719856993642,0.06530079,63752.0,63751.0,0.23817404]
[1719856993820,0.16763977,63752.0,63751.0,0.23817404]
[1719856994020,0.19063977,63752.0,63751.0,0.23817404]
[1719856994272,0.49283977,63752.0,63751.0,0.23817404]
[1719856994635,0.43283977,63752.0,63751.0,0.23817404]
[1719856995639,0.44183977,63752.0,63751.0,0.23917404]
[1719856996078,0.44183977,63752.0,63751.0,0.23817404]
[1719856996079,0.43283977,63752.0,63751.0,0.23817404]
[1719856996399,0.43383977,63752.0,63751.0,0.23817404]
[1719856997195,0.49383977,63752.0,63751.0,0.158831]
[1719856997643,0.43383977,63752.0,63751.0,0.158831]
[1719856997780,0.49383977,63752.0,63751.0,0.158831]
[1719856998183,0.49383977,63752.0,63751.0,0.163831]
[1719856998388,0.49373977,63752.0,63751.0,0.163831]
[1719856998611,0.49273977,63752.0,63751.0,0.163831]
[1719856998785,0.49273977,63752.0,63751.0,0.158831]
[1719856999016,0.00520079,63746.0,63745.0,0.2]
[1719856999345,0.25053977,63746.0,63745.0,0.358831]
[1719856999900,0.25053977,63746.0,63745.0,0.158831]
[1719857000727,0.19053977,63746.0,63745.0,0.158831]
[1719857001200,0.19053977,63746.0,63745.0,0.164831]
[1719857001991,0.19153977,63746.0,63745.0,0.171831]
[1719857002833,0.19143977,63746.0,63745.0,0.171831]
[1719857003443,0.25143977,63746.0,63745.0,0.171831]
[1719857004242,0.19143977,63746.0,63745.0,0.013]
[1719857004443,0.25143977,63746.0,63745.0,0.013]
[1719857004646,0.19143977,63746.0,63745.0,0.013]
[1719857006075,0.19153977,63746.0,63745.0,0.013]
[1719857006847,0.25153977,63746.0,63745.0,0.013]
[1719857007805,0.25153977,63746.0,63745.0,0.0131]
[1719857008439,0.19153977,63746.0,63745.0,0.0131]
[1719857009784,0.22153977,63746.0,63745.0,0.0131]
[1719857010141,0.56963977,63746.0,63745.0,0.0131]
[1719857011516,0.19153977,63746.0,63745.0,0.0131]
[1719857011716,0.2,63758.0,63745.0,0.0131]
[1719857011717,0.062824,63765.0,63764.0,0.2]
[1719857011921,0.307,63773.0,63764.0,0.27934304]
[1719857012130,0.307,63773.0,63764.0,0.43817404]
[1719857012131,0.16233898,63769.0,63764.0,0.43817404]
[1719857013617,0.16333898,63769.0,63764.0,0.44817404]
[1719857014011,0.16417898,63769.0,63764.0,0.44817404]
[1719857014446,0.16417898,63769.0,63764.0,0.45817404]
[1719857014857,0.16417898,63769.0,63764.0,0.378831]
[1719857015176,0.023,63768.0,63764.0,0.378831]
[1719857015432,0.16233898,63767.0,63764.0,0.378831]
[1719857018195,0.18533898,63765.0,63764.0,0.386831]
[1719857018755,0.18533898,63765.0,63764.0,0.937931]
[1719857018756,0.023,63765.0,63764.0,0.937931]
[1719857019249,0.00084,63769.0,63764.0,0.937931]
[1719857019451,0.00084,63769.0,63767.0,0.07934304]
[1719857020037,0.00084,63769.0,63767.0,0.07924304]
[1719857020918,0.02384,63769.0,63767.0,0.07924304]
[1719857021249,0.02484,63769.0,63767.0,0.07924304]
[1719857022542,0.02384,63769.0,63767.0,0.07924304]
[1719857022914,0.02484,63769.0,63767.0,0.08924304]
[1719857023114,0.02484,63769.0,63767.0,0.09924304]
[1719857023328,0.02484,63769.0,63767.0,0.01]
[1719857023329,0.16233898,63768.0,63767.0,0.01]
[1719857023488,0.22233898,63768.0,63767.0,0.01]
[1719857023683,0.3164,63767.0,63764.0,0.158931]
[1719857023895,0.18533898,63766.0,63764.0,0.158931]
[1719857024419,0.00084,63769.0,63767.0,0.2]
[1719857024594,0.023,63768.0,63767.0,0.21]
[1719857024800,0.02484,63769.0,63767.0,0.21]
[1719857025415,0.02484,63769.0,63768.0,0.07924304]
[1719857025842,0.02384,63769.0,63768.0,0.07924304]
[1719857027580,0.02384,63769.0,63768.0,0.014]
[1719857027581,0.18617898,63769.0,63768.0,0.014]
[1719857027798,0.18717898,63769.0,63768.0,0.014]
[1719857028022,0.43767898,63769.0,63768.0,0.027]
[1719857029060,0.43667898,63769.0,63768.0,0.013]
[1719857029312,0.43767898,63769.0,63768.0,0.023]
[1719857029500,0.49767898,63769.0,63768.0,0.023]
[1719857029823,0.49767898,63769.0,63764.0,0.158931]
[1719857029824,0.43667898,63769.0,63764.0,0.158931]
[1719857030028,0.16233898,63768.0,63764.0,0.158931]
[1719857030270,0.0001,63765.0,63764.0,0.158931]
[1719857030486,0.16243898,63765.0,63764.0,0.158931]
[1719857030691,0.18543898,63765.0,63764.0,0.158931]
[1719857031104,0.18543898,63765.0,63764.0,0.171931]
[1719857032221,0.18543898,63765.0,63764.0,0.185931]
[1719857032372,0.0001,63765.0,63764.0,0.172931]
[1719857033111,0.16343898,63765.0,63764.0,0.170931]
[1719857033640,0.16343898,63765.0,63764.0,0.182931]
[1719857033972,0.18643898,63765.0,63764.0,0.182931]
[1719857035412,0.18643898,63765.0,63764.0,0.0241]
[1719857036847,0.0011,63765.0,63764.0,0.6055]
[1719857037049,0.0011,63765.0,63764.0,0.6654]
[1719857038881,0.0011,63765.0,63764.0,1.635884]
[1719857039144,0.0011,63765.0,63764.0,1.735884]
[1719857039282,0.0001,63765.0,63764.0,1.711884]
[1719857039482,0.0001,63765.0,63764.0,2.011884]
[1719857039738,0.0011,63765.0,63764.0,2.039884]
[1719857039907,0.0011,63765.0,63764.0,2.025884]
[1719857040109,0.0011,63765.0,63764.0,2.81553498]
[1719857040319,0.0011,63765.0,63764.0,2.20187898]
[1719857040507,0.0011,63765.0,63764.0,1.739884]
[1719857040508,0.0021,63765.0,63764.0,1.739884]
[1719857040733,0.0021,63765.0,63764.0,1.725884]
[1719857041850,0.0021,63765.0,63764.0,1.2554]
[1719857042238,0.0021,63765.0,63764.0,1.2095]
[1719857042694,0.0021,63765.0,63764.0,1.2694]
[1719857042857,0.0021,63765.0,63764.0,1.2095]
[1719857043453,0.0021,63765.0,63764.0,1.2694]
[1719857044506,0.0021,63765.0,63764.0,1.2095]
[1719857044662,0.0021,63765.0,63764.0,1.2694]
[1719857044860,0.0021,63765.0,63764.0,1.2095]
[1719857045060,0.0021,63765.0,63764.0,0.1281]
[1719857045300,0.16443898,63765.0,63764.0,0.0281]
[1719857045499,0.18743898,63765.0,63764.0,0.0281]
[1719857046547,0.18743898,63765.0,63764.0,0.029024]
[1719857048406,0.18243898,63765.0,63764.0,0.029024]
[1719857050733,0.18732626,63765.0,63764.0,0.029024]
[1719857050949,0.21732626,63765.0,63764.0,0.029024]
[1719857051155,0.56412626,63765.0,63764.0,0.029024]
[1719857051471,0.50412626,63765.0,63764.0,0.029024]
[1719857051637,0.53412626,63765.0,63764.0,0.029024]
[1719857051838,0.56412652,63765.0,63764.0,0.029024]
[1719857052086,0.56412652,63765.0,63764.0,0.015024]
[1719857052457,0.56412652,63765.0,63764.0,0.028024]
[1719857052661,0.50412652,63765.0,63764.0,0.015024]
[1719857052901,0.44752652,63765.0,63764.0,0.027024]
[1719857053080,0.50762652,63765.0,63764.0,0.013024]
[1719857053284,0.44762652,63765.0,63764.0,0.013024]
[1719857053502,0.44762652,63765.0,63764.0,0.026024]
[1719857053835,0.50762652,63765.0,63764.0,0.014024]
[1719857054077,0.50762652,63765.0,63764.0,0.001024]
[1719857054247,0.50762652,63765.0,63764.0,0.015024]
[1719857054814,0.50762652,63765.0,63764.0,0.008024]
[1719857055044,1.43023898,63765.0,63764.0,0.008024]
[1719857055374,1.43023898,63765.0,63764.0,0.020024]
[1719857055375,1.2073221,63765.0,63764.0,0.020024]
[1719857055562,1.20732227,63765.0,63764.0,0.013024]
[1719857055763,1.50732227,63765.0,63764.0,0.013024]
[1719857056115,1.20732227,63765.0,63764.0,0.001024]
[1719857056519,0.90732227,63765.0,63764.0,0.020024]
[1719857056727,1.20732227,63765.0,63764.0,0.008024]
[1719857057127,1.50732227,63765.0,63764.0,0.008024]
[1719857057374,0.90232227,63765.0,63764.0,0.001024]
[1719857057580,1.20232227,63765.0,63764.0,0.001024]
[1719857058142,1.50232227,63765.0,63764.0,0.001024]
[1719857058344,2.04172707,63765.0,63764.0,0.001024]
[1719857058576,2.01659272,63765.0,63764.0,0.001024]
[1719857058907,2.04373269,63765.0,63764.0,0.001024]
[1719857059321,1.12457398,63765.0,63764.0,0.001024]
[1719857059649,1.01112784,63765.0,63764.0,0.001024]
[1719857060174,0.81112784,63765.0,63764.0,0.001024]
[1719857060408,0.80912784,63765.0,63764.0,0.001024]
[1719857060583,0.80712784,63765.0,63764.0,0.001024]
[1719857060787,0.82595938,63765.0,63764.0,0.001024]
[1719857060983,0.84895938,63765.0,63764.0,0.001024]
[1719857061756,0.18242784,63765.0,63764.0,0.001024]
[1719857061959,0.18442784,63765.0,63764.0,0.001024]
[1719857062107,0.17753898,63765.0,63764.0,0.001024]
[1719857063060,0.18242669,63765.0,63764.0,0.003024]
[1719857063474,0.18242669,63765.0,63764.0,0.00080245]
[1719857063475,0.17753898,63765.0,63764.0,0.00080245]
[1719857063821,0.15453898,63765.0,63764.0,0.32010245]
[1719857064025,0.15453898,63765.0,63764.0,0.32210245]
[1719857064796,0.15453898,63765.0,63764.0,0.32107845]
[1719857065233,0.17753898,63765.0,63764.0,0.32107845]
[1719857065656,0.17753898,63765.0,63764.0,0.33407845]
[1719857066004,0.0001,63765.0,63764.0,0.33407845]
[1719857066209,0.0001,63765.0,63764.0,0.33207845]
[1719857066406,0.0001,63765.0,63764.0,0.34507845]
[1719857068895,0.0001,63765.0,63764.0,0.0261]
[1719857069094,0.16243898,63765.0,63764.0,0.0261]
[1719857069294,0.18543898,63765.0,63764.0,0.0261]
[1719857072945,0.19032644,63765.0,63764.0,0.0261]
[1719857073521,0.49692644,63765.0,63764.0,0.0261]
[1719857073963,0.49630214,63765.0,63764.0,0.0261]
[1719857074358,0.43630214,63765.0,63764.0,0.0261]
[1719857074562,0.18970214,63765.0,63764.0,0.0261]
[1719857074714,0.24970214,63765.0,63764.0,0.0261]
[1719857074921,0.24970238,63765.0,63764.0,0.0261]
[1719857077811,0.24970241,63765.0,63764.0,0.0261]
[1719857078054,0.24481468,63765.0,63764.0,0.0261]
[1719857078265,0.24970242,63765.0,63764.0,0.0261]
[1719857079600,0.24970242,63765.0,63764.0,0.027024]
[1719857079825,0.25064242,63765.0,63764.0,0.027024]
[1719857081345,0.2506425,63765.0,63764.0,0.027024]
[1719857081568,0.32283196,63765.0,63764.0,0.027024]
[1719857082232,0.2506425,63765.0,63764.0,0.027024]
[1719857082448,0.32283011,63765.0,63764.0,0.027024]
[1719857083307,0.2506425,63765.0,63764.0,0.027024]
[1719857083520,0.2206425,63765.0,63764.0,0.027024]
[1719857083744,0.2506425,63765.0,63764.0,0.027024]
[1719857083928,0.1906425,63765.0,63764.0,0.027024]
[1719857084166,0.1676425,63765.0,63764.0,0.027024]
[1719857084365,0.1676425,63765.0,63764.0,0.267824]
[1719857084586,0.16275468,63765.0,63764.0,0.267824]
[1719857085875,0.18575468,63765.0,63764.0,0.267824]
[1719857089246,0.19064183,63765.0,63764.0,0.267824]
[1719857089647,0.18575468,63765.0,63764.0,0.267824]
[1719857093267,0.19064185,63765.0,63764.0,0.267824]
[1719857093806,0.18575468,63765.0,63764.0,0.267824]
[1719857097626,0.18575468,63765.0,63764.0,0.027024]
[1719857101258,0.24575468,63765.0,63764.0,0.027024]
[1719857101474,0.18575468,63765.0,63764.0,0.027024]
[1719857101667,0.16275468,63765.0,63764.0,0.027024]
[1719857102913,0.18575468,63765.0,63764.0,0.027024]
[1719857105856,0.00094,63765.0,63764.0,0.602224]
[1719857106058,0.00094,63765.0,63764.0,0.662124]
[1719857106258,0.00094,63765.0,63764.0,0.762124]
[1719857106853,0.00094,63765.0,63764.0,0.702224]
[1719857107430,0.00094,63765.0,63764.0,0.689224]
[1719857107629,0.00094,63765.0,63764.0,0.749124]
[1719857107874,0.00094,63765.0,63764.0,0.703224]
[1719857108072,0.00094,63765.0,63764.0,0.750124]
[1719857108483,0.00094,63765.0,63764.0,0.704224]
[1719857111968,0.00094,63765.0,63764.0,0.390624]
[1719857113340,0.00094,63765.0,63764.0,0.928924]
[1719857113497,0.00094,63765.0,63764.0,1.09126298]
[1719857113739,0.00094,63765.0,63764.0,1.56174698]
[1719857114057,0.00094,63765.0,63764.0,2.17540298]
[1719857114631,0.00094,63765.0,63764.0,2.16140298]
[1719857115250,0.00094,63765.0,63764.0,2.46140298]
[1719857115455,0.00094,63765.0,63764.0,2.44740298]
[1719857115859,0.00094,63765.0,63764.0,2.46140298]
[1719857116060,0.00094,63765.0,63764.0,2.47540298]
[1719857116259,0.00094,63765.0,63764.0,2.44740298]
[1719857116661,0.00094,63765.0,63764.0,2.47540298]
[1719857117478,0.00094,63765.0,63764.0,2.67540298]
[1719857118534,0.00094,63765.0,63764.0,2.98905898]
[1719857118739,0.00094,63765.0,63764.0,3.03518391]
[1719857118913,0.00094,63765.0,63764.0,2.98905898]
[1719857119303,0.00094,63765.0,63764.0,2.97505898]
[1719857120084,0.00084,63769.0,63768.0,2.14399]
[1719857120330,0.00084,63769.0,63768.0,2.96912898]
[1719857120553,0.00084,63769.0,63768.0,3.28276498]
[1719857120885,0.00084,63769.0,63768.0,2.66912898]
[1719857121865,0.00084,63769.0,63768.0,2.36912898]
[1719857122516,0.00084,63769.0,63768.0,1.579518]
[1719857122937,0.00084,63769.0,63768.0,1.593518]
[1719857123110,0.00084,63769.0,63768.0,1.607518]
[1719857123268,0.00084,63769.0,63768.0,1.4507]
[1719857125543,0.00084,63769.0,63768.0,1.3908]
[1719857126100,0.00094,63769.0,63768.0,1.3908]
[1719857126912,0.00094,63769.0,63768.0,0.814]
[1719857127096,0.00094,63769.0,63768.0,0.828]
[1719857127295,0.00094,63769.0,63768.0,0.814]
[1719857127620,0.00094,63769.0,63768.0,0.8]
[1719857127872,0.00094,63769.0,63768.0,0.814]
[1719857129372,0.00094,63769.0,63768.0,0.828]
[1719857129706,0.00094,63769.0,63768.0,0.8]
[1719857129908,0.00094,63769.0,63768.0,0.814]
[1719857130488,0.01835,63770.0,63768.0,0.828]
[1719857130718,0.01835,63770.0,63769.0,0.1]
[1719857131084,0.01835,63770.0,63769.0,0.1599]
[1719857131635,0.01835,63770.0,63769.0,0.1]
[1719857132046,0.01835,63770.0,63769.0,0.16303601]
[1719857132208,0.01835,63770.0,63769.0,1.07245201]
[1719857132409,0.01835,63770.0,63769.0,0.91553601]
[1719857132858,0.01835,63770.0,63769.0,1.10035201]
[1719857133032,0.01835,63770.0,63769.0,0.94353601]
[1719857133642,0.01835,63770.0,63769.0,0.92953601]
[1719857134098,0.01835,63770.0,63769.0,0.91553601]
[1719857134298,0.01835,63770.0,63769.0,0.92953601]
[1719857135360,0.01835,63770.0,63769.0,0.7683]
[1719857135582,0.01835,63770.0,63769.0,0.9404]
[1719857137681,0.01835,63770.0,63769.0,0.9403]
[1719857138081,0.01835,63770.0,63769.0,1.097116]
[1719857138465,0.01835,63770.0,63769.0,0.7822]
[1719857138671,0.01835,63770.0,63769.0,0.9403]
[1719857139281,0.01835,63770.0,63769.0,0.2859]
[1719857139491,0.01835,63770.0,63769.0,0.1278]
[1719857139924,0.01835,63770.0,63769.0,0.5125]
[1719857140254,0.01835,63770.0,63769.0,0.4526]
[1719857140437,0.01835,63770.0,63769.0,0.6706]
[1719857140840,0.01835,63770.0,63769.0,0.6107]
[1719857141048,0.01845,63770.0,63769.0,0.2859]
[1719857141390,0.01845,63770.0,63769.0,0.3458]
[1719857143733,0.01845,63770.0,63769.0,0.1278]
[1719857143924,0.0212267,63775.0,63770.0,199.98155]
[1719857144129,0.0212267,63775.0,63770.0,200.140381]
[1719857144130,0.18533898,63774.0,63770.0,200.140381]
[1719857144282,0.2414,63771.0,63770.0,200.140381]
[1719857144481,0.81312533,63771.0,63770.0,199.97882146]
[1719857145393,0.81312533,63771.0,63770.0,199.99282146]
[1719857145727,0.81312533,63771.0,63770.0,0.014]
[1719857145934,0.06,63770.0,63769.0,0.020924]
[1719857146111,0.82042533,63770.0,63769.0,0.020924]
[1719857146478,0.82768152,63770.0,63769.0,0.020924]
[1719857147370,0.82868152,63770.0,63769.0,0.020924]
[1719857147781,0.82768152,63770.0,63769.0,0.020924]
[1719857148128,0.82768152,63770.0,63769.0,0.021924]
[1719857148129,1.12768152,63770.0,63769.0,0.021924]
[1719857148336,0.82768152,63770.0,63769.0,0.021924]
[1719857148677,0.82768152,63770.0,63769.0,0.020924]
[1719857148678,1.49985891,63770.0,63769.0,0.020924]
[1719857148879,1.69985891,63770.0,63769.0,0.00747017]
[1719857149064,1.69985891,63770.0,63764.0,0.001024]
[1719857149065,1.2302,63765.0,63764.0,0.001024]
[1719857149299,0.06,63755.0,63751.0,0.07934304]
[1719857149508,0.06,63755.0,63744.0,0.07934304]